[Event "*** SCC Grand Prix: Titled Tuesday Blitz"]
[Site "Chess.com"]
[Date "2020.06.09"]
[Round "2"]
[White "LawrenceTrent"]
[Black "MikaelyanArman"]
[Result "0-1"]
[WhiteElo "2528"]
[BlackElo "2775"]
[TimeControl "180+1"]
[EndTime "9:19:27 PDT"]
[Termination "MikaelyanArman won on time"]

1. d4 {[%clk 0:03:00.9]} 1... Nf6 {[%clk 0:02:59.2]} 2. Nc3 {[%clk 0:02:57.6]}
2... d5 {[%clk 0:02:58.5]} 3. Bf4 {[%clk 0:02:56.9]} 3... a6 {[%clk 0:02:58.8]}
4. e3 {[%clk 0:02:56.8]} 4... e6 {[%clk 0:02:59.1]} 5. g4 {[%clk 0:02:55.9]}
5... c5 {[%clk 0:02:56.5]} 6. g5 {[%clk 0:02:55.8]} 6... Nfd7 {[%clk 0:02:56.7]}
7. h4 {[%clk 0:02:55.6]} 7... Nc6 {[%clk 0:02:52.7]} 8. Nf3 {[%clk 0:02:55.5]}
8... b5 {[%clk 0:02:44]} 9. a3 {[%clk 0:02:54.4]} 9... c4 {[%clk 0:02:06.6]} 10.
Bg2 {[%clk 0:02:40.2]} 10... b4 {[%clk 0:02:05.8]} 11. axb4 {[%clk 0:02:39.6]}
11... Bxb4 {[%clk 0:02:06.7]} 12. Nd2 {[%clk 0:02:30.8]} 12... Nb6 {[%clk
0:01:52.6]} 13. Bg3 {[%clk 0:02:19.7]} 13... Bb7 {[%clk 0:01:34.2]} 14. Qg4
{[%clk 0:01:59.4]} 14... Ne7 {[%clk 0:01:26.1]} 15. Be5 {[%clk 0:01:55]} 15...
Nf5 {[%clk 0:01:23.6]} 16. h5 {[%clk 0:01:53]} 16... Bd6 {[%clk 0:01:13.7]} 17.
Bf4 {[%clk 0:01:18.7]} 17... Bxf4 {[%clk 0:01:11.1]} 18. Qxf4 {[%clk 0:01:18.6]}
18... O-O {[%clk 0:00:54.7]} 19. Nf3 {[%clk 0:01:14]} 19... f6 {[%clk
0:00:51.9]} 20. gxf6 {[%clk 0:01:08.7]} 20... Rxf6 {[%clk 0:00:52.8]} 21. Qg5
{[%clk 0:01:07.8]} 21... h6 {[%clk 0:00:50.8]} 22. Qg4 {[%clk 0:01:06.4]} 22...
Nd7 {[%clk 0:00:47.2]} 23. Ne2 {[%clk 0:01:03.6]} 23... Qb6 {[%clk 0:00:43.3]}
24. Ra2 {[%clk 0:00:59.6]} 24... Qb4+ {[%clk 0:00:37.5]} 25. Kf1 {[%clk
0:00:59]} 25... Raf8 {[%clk 0:00:31.5]} 26. Rh3 {[%clk 0:00:56.8]} 26... a5
{[%clk 0:00:26.6]} 27. Kg1 {[%clk 0:00:56]} 27... R6f7 {[%clk 0:00:23.3]} 28.
Nf4 {[%clk 0:00:55.7]} 28... Nf6 {[%clk 0:00:19.2]} 29. Qg6 {[%clk 0:00:55]}
29... Ne7 {[%clk 0:00:17.7]} 30. Qg3 {[%clk 0:00:52.4]} 30... Ne4 {[%clk
0:00:18]} 31. Qh4 {[%clk 0:00:50]} 31... Qd6 {[%clk 0:00:11.1]} 32. Ne5 {[%clk
0:00:48.2]} 32... Rxf4 {[%clk 0:00:07.9]} 33. exf4 {[%clk 0:00:46.7]} 33... Nf5
{[%clk 0:00:08.4]} 34. Qg4 {[%clk 0:00:46.8]} 34... Nxd4 {[%clk 0:00:08.2]} 35.
Bxe4 {[%clk 0:00:44.6]} 35... dxe4 {[%clk 0:00:09.1]} 36. Rg3 {[%clk 0:00:44.3]}
36... Nf5 {[%clk 0:00:06.3]} 37. Rga3 {[%clk 0:00:38.5]} 37... e3 {[%clk
0:00:05.9]} 38. fxe3 {[%clk 0:00:32.7]} 38... Qd2 {[%clk 0:00:05.7]} 39. Ra1
{[%clk 0:00:22.5]} 39... Nxe3 {[%clk 0:00:04.9]} 40. Qxe6+ {[%clk 0:00:22.4]}
40... Kh7 {[%clk 0:00:03.8]} 41. Qg6+ {[%clk 0:00:22.3]} 41... Kh8 {[%clk
0:00:04.3]} 42. Qg3 {[%clk 0:00:20.8]} 42... Nf5 {[%clk 0:00:03.3]} 43. Ng6+
{[%clk 0:00:20.6]} 43... Kg8 {[%clk 0:00:03.1]} 44. Qf2 {[%clk 0:00:21]} 44...
Qd5 {[%clk 0:00:02.8]} 45. Kh2 {[%clk 0:00:19.4]} 45... Nd4 {[%clk 0:00:02.3]}
46. Rg1 {[%clk 0:00:18.2]} 46... Qxh5+ {[%clk 0:00:02]} 47. Nh4 {[%clk
0:00:16.3]} 47... Nf5 {[%clk 0:00:01.3]} 48. Rh3 {[%clk 0:00:15.7]} 48... Nxh4
{[%clk 0:00:01.3]} 49. Rxh4 {[%clk 0:00:16.3]} 49... Qf7 {[%clk 0:00:01.8]} 50.
Rhg4 {[%clk 0:00:16.7]} 50... Kh8 {[%clk 0:00:01.9]} 51. Rxg7 {[%clk 0:00:16.2]}
51... Qh5+ {[%clk 0:00:02.5]} 52. Kg3 {[%clk 0:00:14.2]} 52... Kxg7 {[%clk
0:00:03.1]} 53. Qd4+ {[%clk 0:00:14.2]} 53... Kh7 {[%clk 0:00:02.9]} 54. Qd7+
{[%clk 0:00:11.2]} 54... Rf7 {[%clk 0:00:02.5]} 55. Qd6 {[%clk 0:00:11.5]} 55...
Qg6+ {[%clk 0:00:02.7]} 56. Kf2 {[%clk 0:00:12.4]} 56... Qxd6 {[%clk 0:00:02.4]}
0-1

[Event "*** SCC Grand Prix: Titled Tuesday Blitz"]
[Site "Chess.com"]
[Date "2020.06.09"]
[Round "2"]
[White "Leonid_Starozhilov"]
[Black "ChelsieMonica"]
[Result "0-1"]
[WhiteElo "2707"]
[BlackElo "2375"]
[TimeControl "180+1"]
[EndTime "9:19:31 PDT"]
[Termination "ChelsieMonica won by resignation"]

1. e4 {[%clk 0:03:00.9]} 1... e5 {[%clk 0:03:00]} 2. Nf3 {[%clk 0:03:00.7]} 2...
Nc6 {[%clk 0:03:00.3]} 3. Bb5 {[%clk 0:03:00.4]} 3... a6 {[%clk 0:02:58.4]} 4.
Ba4 {[%clk 0:02:59.6]} 4... Nf6 {[%clk 0:02:58.5]} 5. d3 {[%clk 0:02:59.5]} 5...
b5 {[%clk 0:02:57.2]} 6. Bb3 {[%clk 0:02:59.3]} 6... Be7 {[%clk 0:02:56.8]} 7.
a4 {[%clk 0:02:58.7]} 7... Bb7 {[%clk 0:02:53.8]} 8. O-O {[%clk 0:02:56]} 8...
O-O {[%clk 0:02:50.6]} 9. axb5 {[%clk 0:02:50.8]} 9... axb5 {[%clk 0:02:50.3]}
10. Rxa8 {[%clk 0:02:50.9]} 10... Qxa8 {[%clk 0:02:50.9]} 11. Nc3 {[%clk
0:02:51.2]} 11... b4 {[%clk 0:02:50.1]} 12. Nd5 {[%clk 0:02:50.5]} 12... Nxd5
{[%clk 0:02:23.7]} 13. Bxd5 {[%clk 0:02:46.3]} 13... Bd6 {[%clk 0:02:00.7]} 14.
Nd2 {[%clk 0:02:15.5]} 14... Na5 {[%clk 0:01:52.6]} 15. Bc4 {[%clk 0:01:59.9]}
15... Ba6 {[%clk 0:01:46.1]} 16. b3 {[%clk 0:01:53.5]} 16... Nxc4 {[%clk
0:01:36.2]} 17. bxc4 {[%clk 0:01:43.8]} 17... Bb7 {[%clk 0:01:32.1]} 18. Nb3
{[%clk 0:01:42.9]} 18... f5 {[%clk 0:01:30.3]} 19. f3 {[%clk 0:01:39.2]} 19...
Qa7+ {[%clk 0:01:23.1]} 20. Kh1 {[%clk 0:01:38.2]} 20... f4 {[%clk 0:01:16.7]}
21. Bb2 {[%clk 0:01:34.8]} 21... c6 {[%clk 0:01:00]} 22. Qd2 {[%clk 0:01:27.5]}
22... c5 {[%clk 0:00:56.3]} 23. Ra1 {[%clk 0:01:26.6]} 23... Qb6 {[%clk
0:00:56.5]} 24. Qc1 {[%clk 0:01:25.7]} 24... Bc7 {[%clk 0:00:41.6]} 25. Ra5
{[%clk 0:01:16.7]} 25... d6 {[%clk 0:00:41.6]} 26. Qa1 {[%clk 0:01:10.7]} 26...
Qc6 {[%clk 0:00:42]} 27. Ra7 {[%clk 0:01:04.5]} 27... Ra8 {[%clk 0:00:42.1]} 28.
Rxa8+ {[%clk 0:01:01.6]} 28... Bxa8 {[%clk 0:00:43]} 29. g4 {[%clk 0:00:59.1]}
29... fxg3 {[%clk 0:00:41.7]} 30. hxg3 {[%clk 0:00:59.2]} 30... Qe8 {[%clk
0:00:41.4]} 31. Kg2 {[%clk 0:00:58.5]} 31... Bc6 {[%clk 0:00:41.6]} 32. f4
{[%clk 0:00:53.2]} 32... Bd7 {[%clk 0:00:32.2]} 33. f5 {[%clk 0:00:49.6]} 33...
g6 {[%clk 0:00:31.2]} 34. fxg6 {[%clk 0:00:37.8]} 34... hxg6 {[%clk 0:00:23.8]}
35. Qf1 {[%clk 0:00:32.4]} 35... Qe6 {[%clk 0:00:22.3]} 36. Qf2 {[%clk 0:00:29]}
36... Qh3+ {[%clk 0:00:21.2]} 37. Kg1 {[%clk 0:00:29]} 37... Qh5 {[%clk
0:00:20.9]} 38. Bc1 {[%clk 0:00:21.5]} 38... Bd8 {[%clk 0:00:20.9]} 39. Be3
{[%clk 0:00:18.4]} 39... Bh3 {[%clk 0:00:20.9]} 40. Nd2 {[%clk 0:00:16.4]} 40...
Qd1+ {[%clk 0:00:20.3]} 41. Kh2 {[%clk 0:00:16.4]} 41... Be6 {[%clk 0:00:20.4]}
42. Nf3 {[%clk 0:00:13.6]} 42... Bg4 {[%clk 0:00:19.3]} 43. Nh4 {[%clk
0:00:09.2]} 43... Bxh4 {[%clk 0:00:17.1]} 44. gxh4 {[%clk 0:00:10.1]} 44... Bf3
{[%clk 0:00:17.4]} 45. Kg3 {[%clk 0:00:07.2]} 45... Bh5 {[%clk 0:00:18.1]} 46.
Bh6 {[%clk 0:00:04.2]} 46... Qg4+ {[%clk 0:00:18.1]} 47. Kh2 {[%clk 0:00:04.1]}
47... Qe2 {[%clk 0:00:17.7]} 48. Qxe2 {[%clk 0:00:03.1]} 48... Bxe2 {[%clk
0:00:18.6]} 49. Bg5 {[%clk 0:00:02.7]} 49... Kf7 {[%clk 0:00:18.6]} 50. Kg3
{[%clk 0:00:02.8]} 50... Bd1 {[%clk 0:00:18.8]} 51. Kf2 {[%clk 0:00:03.4]} 51...
Bxc2 {[%clk 0:00:18.9]} 52. Ke3 {[%clk 0:00:04.3]} 52... b3 {[%clk 0:00:19.1]}
53. Kd2 {[%clk 0:00:04.5]} 53... Bb1 {[%clk 0:00:17]} 54. Kc3 {[%clk 0:00:02.9]}
54... b2 {[%clk 0:00:16.8]} 55. Kxb2 {[%clk 0:00:02.6]} 55... Bxd3 {[%clk
0:00:17.1]} 56. Kc3 {[%clk 0:00:03]} 56... Bxe4 {[%clk 0:00:17.7]} 57. Bd8
{[%clk 0:00:03.5]} 57... Ke6 {[%clk 0:00:18.2]} 58. Bc7 {[%clk 0:00:03.8]} 58...
d5 {[%clk 0:00:18.5]} 59. cxd5+ {[%clk 0:00:04]} 59... Kxd5 {[%clk 0:00:19.4]}
60. Bb8 {[%clk 0:00:03.8]} 60... Bf5 {[%clk 0:00:19.6]} 61. Kd2 {[%clk 0:00:04]}
61... c4 {[%clk 0:00:20.5]} 62. Kc3 {[%clk 0:00:04.1]} 62... Be6 {[%clk
0:00:20.4]} 63. Ba7 {[%clk 0:00:04.2]} 63... Ke4 {[%clk 0:00:21.3]} 64. Kd2
{[%clk 0:00:04.4]} 64... Kf3 {[%clk 0:00:21.1]} 65. Bb8 {[%clk 0:00:04.5]} 65...
e4 {[%clk 0:00:22]} 66. Ke1 {[%clk 0:00:04.6]} 66... e3 {[%clk 0:00:22.2]} 67.
Ba7 {[%clk 0:00:05.5]} 67... e2 {[%clk 0:00:22.8]} 68. Kd2 {[%clk 0:00:05.4]}
68... c3+ {[%clk 0:00:22.6]} 69. Kxc3 {[%clk 0:00:05.6]} 69... e1=Q+ {[%clk
0:00:22.8]} 0-1

[Event "*** SCC Grand Prix: Titled Tuesday Blitz"]
[Site "Chess.com"]
[Date "2020.06.09"]
[Round "2"]
[White "GregShahade"]
[Black "exoticprincess"]
[Result "1-0"]
[WhiteElo "2571"]
[BlackElo "2785"]
[TimeControl "180+1"]
[EndTime "9:19:32 PDT"]
[Termination "GregShahade won by resignation"]

1. e4 {[%clk 0:03:00.9]} 1... c6 {[%clk 0:02:59.3]} 2. Nc3 {[%clk 0:03:00.2]}
2... d5 {[%clk 0:03:00]} 3. Nf3 {[%clk 0:03:00.7]} 3... Bg4 {[%clk 0:02:59.6]}
4. h3 {[%clk 0:03:00.5]} 4... Bxf3 {[%clk 0:03:00.2]} 5. Qxf3 {[%clk 0:03:01.1]}
5... e6 {[%clk 0:03:00.6]} 6. Be2 {[%clk 0:02:59.4]} 6... g6 {[%clk 0:03:00.3]}
7. O-O {[%clk 0:02:58.8]} 7... Nd7 {[%clk 0:03:00.1]} 8. d4 {[%clk 0:02:57.2]}
8... h5 {[%clk 0:02:59.8]} 9. Be3 {[%clk 0:02:46]} 9... Bh6 {[%clk 0:02:59.1]}
10. Rad1 {[%clk 0:02:44.3]} 10... Qf6 {[%clk 0:02:56.5]} 11. Bxh6 {[%clk
0:02:32]} 11... Qxf3 {[%clk 0:02:53.4]} 12. Bxf3 {[%clk 0:02:31.7]} 12... Nxh6
{[%clk 0:02:53.3]} 13. Rfe1 {[%clk 0:02:31.1]} 13... O-O-O {[%clk 0:02:49.1]}
14. Na4 {[%clk 0:02:22.5]} 14... Kc7 {[%clk 0:02:47.9]} 15. Re3 {[%clk
0:02:11.2]} 15... h4 {[%clk 0:02:45.3]} 16. Nc3 {[%clk 0:02:06]} 16... Nf6
{[%clk 0:02:42.8]} 17. e5 {[%clk 0:01:57.8]} 17... Nd7 {[%clk 0:02:33.8]} 18.
Ne2 {[%clk 0:01:57.5]} 18... Nf5 {[%clk 0:02:33.4]} 19. Ra3 {[%clk 0:01:55.6]}
19... a6 {[%clk 0:02:32.9]} 20. Rc1 {[%clk 0:01:54.8]} 20... Nb6 {[%clk
0:02:32.6]} 21. Rd3 {[%clk 0:01:52.6]} 21... Nc4 {[%clk 0:02:21.2]} 22. b3
{[%clk 0:01:49.7]} 22... Na3 {[%clk 0:02:20.6]} 23. c3 {[%clk 0:01:45]} 23... a5
{[%clk 0:02:18.5]} 24. Rd2 {[%clk 0:01:35.8]} 24... b5 {[%clk 0:02:17.3]} 25.
Nf4 {[%clk 0:01:35.2]} 25... a4 {[%clk 0:02:07.5]} 26. Nd3 {[%clk 0:01:35.1]}
26... Ra8 {[%clk 0:02:07.2]} 27. Nc5 {[%clk 0:01:32.5]} 27... axb3 {[%clk
0:02:01.8]} 28. axb3 {[%clk 0:01:33.4]} 28... b4 {[%clk 0:01:58.9]} 29. Bg4
{[%clk 0:01:15.8]} 29... bxc3 {[%clk 0:01:56.9]} 30. Rd3 {[%clk 0:01:08.4]}
30... Nb5 {[%clk 0:01:55.2]} 31. Bxf5 {[%clk 0:01:07.2]} 31... gxf5 {[%clk
0:01:56.1]} 32. Na4 {[%clk 0:01:07.2]} 32... c5 {[%clk 0:01:06.5]} 33. Nxc3
{[%clk 0:00:57.5]} 33... Nxd4 {[%clk 0:01:05.5]} 34. Nxd5+ {[%clk 0:00:52.9]}
34... exd5 {[%clk 0:01:04.1]} 35. Rxd4 {[%clk 0:00:53]} 35... Kc6 {[%clk
0:01:04.6]} 36. Rf4 {[%clk 0:00:46.2]} 36... Rh5 {[%clk 0:01:04.5]} 37. Rf3
{[%clk 0:00:33.6]} 37... Rb8 {[%clk 0:01:00.5]} 38. Rfc3 {[%clk 0:00:31.3]}
38... Rb5 {[%clk 0:01:00.6]} 39. Ra1 {[%clk 0:00:31.5]} 39... d4 {[%clk
0:00:59.4]} 40. Rd3 {[%clk 0:00:29.1]} 40... Kd5 {[%clk 0:00:57.1]} 41. Ra7
{[%clk 0:00:28.8]} 41... Ke4 {[%clk 0:00:53.3]} 42. Rf3 {[%clk 0:00:24.4]} 42...
f4 {[%clk 0:00:36.9]} 43. Rxf7 {[%clk 0:00:16.6]} 43... Rxe5 {[%clk 0:00:36.6]}
44. R7xf4+ {[%clk 0:00:15]} 44... Kd5 {[%clk 0:00:36.9]} 45. Rxh4 {[%clk
0:00:15.4]} 45... Rb4 {[%clk 0:00:33.6]} 46. Rh8 {[%clk 0:00:11.5]} 46... Re1+
{[%clk 0:00:32.2]} 47. Kh2 {[%clk 0:00:11.5]} 47... Rb1 {[%clk 0:00:31.1]} 48.
Rd8+ {[%clk 0:00:11.7]} 48... Ke4 {[%clk 0:00:29.8]} 49. Re8+ {[%clk 0:00:11.8]}
49... Kd5 {[%clk 0:00:30]} 50. Rd8+ {[%clk 0:00:12]} 50... Ke4 {[%clk
0:00:29.7]} 51. h4 {[%clk 0:00:12.7]} 51... R1xb3 {[%clk 0:00:25.9]} 52. Re8+
{[%clk 0:00:12.8]} 52... Kd5 {[%clk 0:00:26]} 53. Rf5+ {[%clk 0:00:13.3]} 53...
Kc4 {[%clk 0:00:25.5]} 54. Rc8 {[%clk 0:00:12.9]} 54... Rb5 {[%clk 0:00:24.1]}
55. h5 {[%clk 0:00:13.4]} 55... d3 {[%clk 0:00:23.9]} 56. Rd8 {[%clk 0:00:13.8]}
56... Rb6 {[%clk 0:00:21.8]} 57. g4 {[%clk 0:00:12.9]} 57... Kc3 {[%clk
0:00:17.8]} 58. g5 {[%clk 0:00:11]} 58... R3b4 {[%clk 0:00:17.3]} 59. Kg3 {[%clk
0:00:10.6]} 59... Rd4 {[%clk 0:00:13.5]} 60. Rxc5+ {[%clk 0:00:07.7]} 60... Rc4
{[%clk 0:00:13.7]} 61. Rxc4+ {[%clk 0:00:07.5]} 61... Kxc4 {[%clk 0:00:14.6]}
62. h6 {[%clk 0:00:07.9]} 62... Rb5 {[%clk 0:00:13.1]} 63. h7 {[%clk 0:00:03.9]}
63... Rxg5+ {[%clk 0:00:13]} 64. Kf4 {[%clk 0:00:04.5]} 64... Rh5 {[%clk
0:00:12.6]} 65. h8=Q {[%clk 0:00:05.1]} 65... Rxh8 {[%clk 0:00:12.1]} 66. Rxh8
{[%clk 0:00:05.7]} 66... d2 {[%clk 0:00:10.9]} 67. Rc8+ {[%clk 0:00:06.6]} 1-0

[Event "*** SCC Grand Prix: Titled Tuesday Blitz"]
[Site "Chess.com"]
[Date "2020.06.09"]
[Round "2"]
[White "kirillgenius"]
[Black "Thipsay"]
[Result "1-0"]
[WhiteElo "2277"]
[BlackElo "2443"]
[TimeControl "180+1"]
[EndTime "9:19:32 PDT"]
[Termination "kirillgenius won by resignation"]

1. e4 {[%clk 0:03:00.9]} 1... e5 {[%clk 0:02:59.6]} 2. Nc3 {[%clk 0:03:00.3]}
2... Nc6 {[%clk 0:02:59.5]} 3. Bc4 {[%clk 0:02:59.7]} 3... Nf6 {[%clk
0:02:58.7]} 4. d3 {[%clk 0:02:59.3]} 4... Bb4 {[%clk 0:02:58.3]} 5. Bg5 {[%clk
0:02:57.7]} 5... h6 {[%clk 0:02:57.8]} 6. Bxf6 {[%clk 0:02:57]} 6... Bxc3+
{[%clk 0:02:58.1]} 7. bxc3 {[%clk 0:02:57.9]} 7... Qxf6 {[%clk 0:02:58.3]} 8.
Ne2 {[%clk 0:02:58.5]} 8... d6 {[%clk 0:02:57.8]} 9. O-O {[%clk 0:02:54.9]} 9...
g5 {[%clk 0:02:57.8]} 10. Rb1 {[%clk 0:02:47.1]} 10... h5 {[%clk 0:02:47.4]} 11.
d4 {[%clk 0:02:44.5]} 11... Ne7 {[%clk 0:02:35.5]} 12. Bb5+ {[%clk 0:02:42.1]}
12... c6 {[%clk 0:02:33.3]} 13. Bc4 {[%clk 0:02:41.1]} 13... h4 {[%clk
0:02:31.6]} 14. f3 {[%clk 0:02:35.7]} 14... Ng6 {[%clk 0:02:30.9]} 15. a4 {[%clk
0:02:31.3]} 15... Nf4 {[%clk 0:02:26.6]} 16. Nxf4 {[%clk 0:02:30.6]} 16... gxf4
{[%clk 0:02:26.7]} 17. h3 {[%clk 0:02:17.6]} 17... Rg8 {[%clk 0:02:23.7]} 18.
Kh1 {[%clk 0:02:07.5]} 18... Rg3 {[%clk 0:02:21]} 19. Rf2 {[%clk 0:02:06.8]}
19... b6 {[%clk 0:02:06.5]} 20. Rd2 {[%clk 0:01:44.5]} 20... Bxh3 {[%clk
0:01:48.4]} 21. gxh3 {[%clk 0:01:39.6]} 21... Rxh3+ {[%clk 0:01:48.2]} 22. Rh2
{[%clk 0:01:38.3]} 22... Rxh2+ {[%clk 0:01:45.1]} 23. Kxh2 {[%clk 0:01:39.2]}
23... O-O-O {[%clk 0:01:45.1]} 24. Qg1 {[%clk 0:01:27.4]} 24... Kc7 {[%clk
0:01:37.5]} 25. a5 {[%clk 0:01:16.2]} 25... b5 {[%clk 0:01:36.8]} 26. Bf1 {[%clk
0:00:58.1]} 26... Kb8 {[%clk 0:00:58.2]} 27. c4 {[%clk 0:00:46.1]} 27... exd4
{[%clk 0:00:55.5]} 28. cxb5 {[%clk 0:00:44.9]} 28... c5 {[%clk 0:00:55.6]} 29.
b6 {[%clk 0:00:41.4]} 29... Rh8 {[%clk 0:00:50.5]} 30. bxa7+ {[%clk 0:00:36.6]}
30... Kxa7 {[%clk 0:00:49.6]} 31. Bh3 {[%clk 0:00:31.5]} 31... Rb8 {[%clk
0:00:41.1]} 32. Rxb8 {[%clk 0:00:26.6]} 32... Kxb8 {[%clk 0:00:40.9]} 33. Qb1+
{[%clk 0:00:27.5]} 33... Ka8 {[%clk 0:00:40.7]} 34. Bc8 {[%clk 0:00:19.4]} 34...
Qe7 {[%clk 0:00:38.8]} 35. Qb6 {[%clk 0:00:16.7]} 35... f6 {[%clk 0:00:38.4]}
36. a6 {[%clk 0:00:14.7]} 36... Qg7 {[%clk 0:00:38.1]} 37. Qc6+ {[%clk
0:00:09.5]} 37... Ka7 {[%clk 0:00:37]} 38. Bg4 {[%clk 0:00:07.6]} 38... Qe7
{[%clk 0:00:34.1]} 39. Qb5 {[%clk 0:00:06.6]} 39... Qc7 {[%clk 0:00:33.5]} 40.
Kh3 {[%clk 0:00:05.9]} 40... Qe7 {[%clk 0:00:32.4]} 41. Qd7+ {[%clk 0:00:04.8]}
41... Qxd7 {[%clk 0:00:32]} 42. Bxd7 {[%clk 0:00:05.6]} 42... Kxa6 {[%clk
0:00:32.1]} 43. Kxh4 {[%clk 0:00:06.5]} 43... c4 {[%clk 0:00:31.7]} 44. Kg4
{[%clk 0:00:06.1]} 44... d3 {[%clk 0:00:28.5]} 45. cxd3 {[%clk 0:00:07]} 45...
cxd3 {[%clk 0:00:28.3]} 46. Ba4 {[%clk 0:00:06.6]} 46... Ka5 {[%clk 0:00:28.3]}
47. Bd1 {[%clk 0:00:06.2]} 47... Kb4 {[%clk 0:00:28.6]} 48. Kxf4 {[%clk
0:00:07.1]} 48... Kc3 {[%clk 0:00:29.3]} 49. Ke3 {[%clk 0:00:05.1]} 49... d2
{[%clk 0:00:29.1]} 50. f4 {[%clk 0:00:03.8]} 50... Kc4 {[%clk 0:00:28.7]} 51.
Kxd2 {[%clk 0:00:03.7]} 51... Kd4 {[%clk 0:00:28.8]} 52. Bf3 {[%clk 0:00:04.6]}
52... Kc4 {[%clk 0:00:24.1]} 53. Ke3 {[%clk 0:00:04.4]} 53... Kc3 {[%clk
0:00:24.5]} 54. Bg4 {[%clk 0:00:04.4]} 54... Kc4 {[%clk 0:00:24.1]} 55. Bf5
{[%clk 0:00:04.4]} 55... Kc5 {[%clk 0:00:24]} 56. Be6 {[%clk 0:00:04.4]} 56...
Kc6 {[%clk 0:00:22.9]} 57. Bd5+ {[%clk 0:00:05.3]} 57... Kc5 {[%clk 0:00:23.1]}
58. Kf3 {[%clk 0:00:06.2]} 58... Kd4 {[%clk 0:00:23.2]} 59. Kg4 {[%clk
0:00:06.2]} 59... Ke3 {[%clk 0:00:23.9]} 60. Kf5 {[%clk 0:00:06]} 60... Kd4
{[%clk 0:00:23]} 61. Kxf6 {[%clk 0:00:06]} 61... Ke3 {[%clk 0:00:23.5]} 62. f5
{[%clk 0:00:06.1]} 62... Kd4 {[%clk 0:00:23.8]} 63. Ke6 {[%clk 0:00:07]} 63...
Kc5 {[%clk 0:00:23.5]} 64. f6 {[%clk 0:00:07.9]} 64... Kd4 {[%clk 0:00:23.7]}
65. f7 {[%clk 0:00:08.8]} 1-0

[Event "*** SCC Grand Prix: Titled Tuesday Blitz"]
[Site "Chess.com"]
[Date "2020.06.09"]
[Round "2"]
[White "Firegrizzly"]
[Black "IMHansNiemann"]
[Result "0-1"]
[WhiteElo "2594"]
[BlackElo "2937"]
[TimeControl "180+1"]
[EndTime "9:19:39 PDT"]
[Termination "IMHansNiemann won on time"]

1. e4 {[%clk 0:03:00.9]} 1... c5 {[%clk 0:02:51.4]} 2. Nf3 {[%clk 0:03:00.8]}
2... Nc6 {[%clk 0:02:47.5]} 3. Bb5 {[%clk 0:03:00.2]} 3... e6 {[%clk 0:02:44.8]}
4. O-O {[%clk 0:02:59.5]} 4... Nge7 {[%clk 0:02:44.2]} 5. d4 {[%clk 0:02:59.5]}
5... cxd4 {[%clk 0:02:42.3]} 6. Nxd4 {[%clk 0:03:00.4]} 6... a6 {[%clk
0:02:42.5]} 7. Nxc6 {[%clk 0:02:56.7]} 7... Nxc6 {[%clk 0:02:43.4]} 8. Bxc6
{[%clk 0:02:54.7]} 8... bxc6 {[%clk 0:02:40]} 9. e5 {[%clk 0:02:52.9]} 9... d5
{[%clk 0:02:38.7]} 10. exd6 {[%clk 0:02:49.3]} 10... Bxd6 {[%clk 0:02:37]} 11.
Nc3 {[%clk 0:02:45.7]} 11... Qe7 {[%clk 0:02:34.5]} 12. Ne4 {[%clk 0:02:45.2]}
12... Bc7 {[%clk 0:02:33.2]} 13. a4 {[%clk 0:02:39.2]} 13... f5 {[%clk
0:02:28.4]} 14. Bg5 {[%clk 0:02:36.7]} 14... Qd7 {[%clk 0:02:27.8]} 15. Qxd7+
{[%clk 0:02:34.1]} 15... Bxd7 {[%clk 0:02:26.3]} 16. Nc5 {[%clk 0:02:35]} 16...
h6 {[%clk 0:02:06.4]} 17. Bd2 {[%clk 0:02:31.5]} 17... Bd6 {[%clk 0:01:48.6]}
18. Nd3 {[%clk 0:02:26]} 18... c5 {[%clk 0:01:37.3]} 19. Rfe1 {[%clk 0:02:23.6]}
19... Ke7 {[%clk 0:01:32]} 20. Bc3 {[%clk 0:02:17.7]} 20... Bc6 {[%clk
0:01:28.7]} 21. g3 {[%clk 0:02:11.5]} 21... Rhg8 {[%clk 0:01:10.2]} 22. Be5
{[%clk 0:01:59.1]} 22... c4 {[%clk 0:01:04.8]} 23. Bxd6+ {[%clk 0:01:58.2]}
23... Kxd6 {[%clk 0:01:04.3]} 24. Ne5 {[%clk 0:01:58.3]} 24... Bd5 {[%clk
0:01:04.6]} 25. Rad1 {[%clk 0:01:57]} 25... Rac8 {[%clk 0:00:56.3]} 26. b4
{[%clk 0:01:51.3]} 26... Ke7 {[%clk 0:00:31.1]} 27. c3 {[%clk 0:01:48.9]} 27...
Rgd8 {[%clk 0:00:28.9]} 28. f4 {[%clk 0:01:46.2]} 28... g5 {[%clk 0:00:24.4]}
29. Kf2 {[%clk 0:01:46.3]} 29... Kf6 {[%clk 0:00:23.9]} 30. Ke3 {[%clk
0:01:44.3]} 30... Rc7 {[%clk 0:00:19.6]} 31. Rg1 {[%clk 0:01:36.6]} 31... Rg8
{[%clk 0:00:19.1]} 32. a5 {[%clk 0:01:29.6]} 32... h5 {[%clk 0:00:18.7]} 33. h4
{[%clk 0:01:28.4]} 33... gxf4+ {[%clk 0:00:17.3]} 34. gxf4 {[%clk 0:01:27.5]}
34... Rg4 {[%clk 0:00:15.9]} 35. Nxg4+ {[%clk 0:01:23.2]} 35... hxg4 {[%clk
0:00:16.8]} 36. Rd2 {[%clk 0:01:21.4]} 36... Rh7 {[%clk 0:00:15.9]} 37. Rh2
{[%clk 0:01:20.2]} 37... e5 {[%clk 0:00:16.1]} 38. h5 {[%clk 0:01:13.8]} 38...
Re7 {[%clk 0:00:16.1]} 39. h6 {[%clk 0:01:11.4]} 39... exf4+ {[%clk 0:00:15.8]}
40. Kxf4 {[%clk 0:01:11.6]} 40... Re4+ {[%clk 0:00:15.3]} 41. Kg3 {[%clk
0:01:12.1]} 41... Re3+ {[%clk 0:00:10.4]} 42. Kf2 {[%clk 0:01:11.8]} 42... Rxc3
{[%clk 0:00:11]} 43. Rh5 {[%clk 0:00:55.6]} 43... Rf3+ {[%clk 0:00:06.6]} 44.
Ke1 {[%clk 0:00:52.2]} 44... Re3+ {[%clk 0:00:05.1]} 45. Kd2 {[%clk 0:00:51]}
45... Re8 {[%clk 0:00:05.3]} 46. h7 {[%clk 0:00:49.2]} 46... Rh8 {[%clk
0:00:05.7]} 47. Rf1 {[%clk 0:00:41.3]} 47... Be4 {[%clk 0:00:05]} 48. b5 {[%clk
0:00:32.5]} 48... axb5 {[%clk 0:00:04.7]} 49. Kc3 {[%clk 0:00:31]} 49... Kg6
{[%clk 0:00:05.1]} 50. Rh4 {[%clk 0:00:28]} 50... Kg5 {[%clk 0:00:04.7]} 51. Rh2
{[%clk 0:00:20.3]} 51... g3 {[%clk 0:00:04.5]} 52. Re2 {[%clk 0:00:19.6]} 52...
g2 {[%clk 0:00:04.7]} 53. Rg1 {[%clk 0:00:19.1]} 53... Rxh7 {[%clk 0:00:05.3]}
54. Rxe4 {[%clk 0:00:18]} 54... fxe4 {[%clk 0:00:05.3]} 55. Rxg2+ {[%clk
0:00:18]} 55... Kf4 {[%clk 0:00:06]} 56. a6 {[%clk 0:00:15.9]} 56... Rh3+ {[%clk
0:00:05]} 57. Kb4 {[%clk 0:00:14.1]} 57... Rb3+ {[%clk 0:00:05.5]} 58. Kc5
{[%clk 0:00:13.1]} 58... c3 {[%clk 0:00:05.5]} 59. Ra2 {[%clk 0:00:11.8]} 59...
Rb2 {[%clk 0:00:05.4]} 60. Ra1 {[%clk 0:00:08.6]} 60... c2 {[%clk 0:00:05.5]}
61. a7 {[%clk 0:00:08.6]} 61... Rb1 {[%clk 0:00:06.1]} 62. a8=Q {[%clk
0:00:07.9]} 62... c1=Q+ {[%clk 0:00:06.1]} 63. Kb6 {[%clk 0:00:03.7]} 63... Rxa1
{[%clk 0:00:07]} 64. Qf8+ {[%clk 0:00:03]} 64... Ke3 {[%clk 0:00:07.5]} 65. Qh6+
{[%clk 0:00:02.2]} 65... Kd3 {[%clk 0:00:08]} 66. Qf6 {[%clk 0:00:03.1]} 66...
Qe3+ {[%clk 0:00:06.8]} 67. Kb7 {[%clk 0:00:01.7]} 67... Qd4 {[%clk 0:00:07.7]}
0-1